Workbook

Sheet TOT-0316
B2: ANEXO III al Memorandum D.T.E.E. N° 279 / 2017
A4: ENTE NACIONAL REGULADOR
A5: DE LA ELECTRICIDAD
B7: SISTEMA DE TRANSPORTE DE ENERGÍA ELÉCTRICA POR DISTRIBUCIÓN TRONCAL
B9: TRANSPA S.A.
B11: TOTAL DE PENALIZACIONES
B13: 1
B14: Desde el 01 al 31 de Marzo de 2016
B16: =IF(B13=2,"Sanciones duplicadas por tasa de falla > 4 Sal. x año/100km.","") -> 
C17: 1.- | D17: LÍNEAS
D18: 1.1.- | E18: Equipamiento propio | I18: ='LI-03 (1)'!AA43 -> 19382.58
D19: 1.2.- | E19: Transportista Independiente E.D.E.R.S.A. | I19: ='LI-EDERSA-03 (1)'!AA43 -> 1096.84
C21: 2.- | D21: CONEXIÓN
D23: 2.1.- | E23: Transformación
E24: 2.1.1.- | F24: Equipamiento propio | I24: ='TR-03 (1)'!AC45 -> 709.17
E25: 2.1.2.- | F25: Transportista Independiente E.D.E.R.S.A. | I25: ='TR-EDERSA-03 (1)'!AC45 -> 200.03
D27: 2.2.- | E27: Salidas
E28: 2.2.1.- | F28: Equipamiento propio | I28: ='SA-03 (1)'!V45 -> 170.01
E29: 2.2.2.- | F29: Transportista Independiente E.D.E.R.S.A. | I29: ='SA-EDERSA-03 (1)'!V45 -> 10.60788
C31: 3.- | D31: SUPERVISIÓN
D32: 3.1.- | E32: Transportista Independiente E.D.E.R.S.A. | I32: ='SUP-EDERSA'!I57 -> 351.0435077
F34: TOTAL | G34: =SUM(I17:I32) -> 21920.28139
C36: Valores remuneratorios de acuerdo al Acuerdo S.E.E. - ENRE - TRANSPA S.A. 2016-2017

Sheet LI-03 (1)
B2: =+'TOT-0316'!B2 -> ANEXO III al Memorandum D.T.E.E. N° 279 / 2017
A4: ENTE NACIONAL REGULADOR
A5: DE LA ELECTRICIDAD
F8: SISTEMA DE TRANSPORTE DE ENERGÍA ELÉCTRICA POR DISTRIBUCIÓN TRONCAL - TRANSPA S.A.
F10: 1.- LÍNEAS
F12: 1.1.- Equipamiento propio
B14: =+'TOT-0316'!B14 -> Desde el 01 al 31 de Marzo de 2016
F16: $/100 km-h : LINEAS 330 kV | G16: 273.243
F17: $/100 km-h : LINEAS 132 kV | G17: 261.099 | K17: FACTOR DE PENALIZACION K = | L17: =30*'TOT-0316'!B13 -> 30 | M17: =IF(L17=30," ",IF(L17=60,"Coeficiente duplicado por tasa de falla >4 Sal. x año/100 km.","REVISAR COEFICIENTE")) -> 
C18: 3 | D18: 4 | E18: 5 | F18: 6 | G18: 7 | H18: 8 | I18: 9 | J18: 10 | K18: 11 | L18: 12 | M18: 13 | N18: 14 | O18: 15 | P18: 16 | Q18: 17 | R18: 18 | S18: 19 | T18: 20 | U18: 21 | V18: 22 | W18: 23 | X18: 24 | Y18: 25 | Z18: 26 | AA18: 27
C19: N° | D19: INDISP | E19: ID EQUIPO | F19: LÍNEAS | G19: U [kV] | H19: Long. [km] | I19: $/h | J19: Salida | K19: Entrada | L19: Hs. Indisp | M19: Minutos Indisp | N19: Tipo Sal.(²) | O19: C.R. % | P19: PENALIZ. PROGRAM. | Q19: REDUCC. PROGRAM. | R19: PENALIZACION FORZADA Por Salida 1ras 3 hs. hs. Restante | U19: REDUCC. FORZADA Por Salida 1ras 3 hs. hs. Restante | X19: RESTANTE FORZADA | Y19: REDUCC. RESTANTE | Z19: Informó en Térm. | AA19: TOTAL PENALIZAC.
C22: 1 | D22: 300266 | E22: 1629 | F22: TRELEW - P. ALUMINIO DGPA | G22: 132 | H22: 62 | I22: =IF(H22>25,H22,25)*IF(G22=330,$G$16,$G$17)/100 -> 161.88138 | J22: 2016-03-07T07:00:00 | K22: 2016-03-07T09:52:00 | L22: =IF(F22="","",(K22-J22)*24) -> 2.866666667 | M22: =IF(F22="","",ROUND((K22-J22)*24*60,0)) -> 172 | N22: F | O22: =IF(F22="","","--") -> -- | P22: =IF(N22="P",ROUND(M22/60,2)*I22*$L$17*0.01,"--") -> -- | Q22: =IF(N22="RP",ROUND(M22/60,2)*I22*$L$17*0.01*O22/100,"--") -> -- | R22: =IF(N22="F",I22*$L$17,"--") -> 4856.4414 | S22: =IF(AND(M22>10,N22="F"),I22*$L$17*IF(M22>180,3,ROUND(M22/60,2)),"--") -> 13937.98682 | T22: =IF(AND(M22>180,N22="F"),(ROUND(M22/60,2)-3)*I22*$L$17*0.1,"--") -> -- | U22: =IF(N22="R",I22*$L$17*O22/100,"--") -> -- | V22: =IF(AND(M22>10,N22="R"),I22*$L$17*O22/100*IF(M22>180,3,ROUND(M22/60,2)),"--") -> -- | W22: =IF(AND(M22>180,N22="R"),(ROUND(M22/60,2)-3)*O22/100*I22*$L$17*0.1,"--") -> -- | X22: =IF(N22="RF",ROUND(M22/60,2)*I22*$L$17*0.1,"--") -> -- | Y22: =IF(N22="RR",ROUND(M22/60,2)*O22/100*I22*$L$17*0.1,"--") -> -- | Z22: =IF(F22="","","SI") -> SI | AA22: =IF(F22="","",SUM(P22:Y22)*IF(Z22="SI",1,2)) -> 18794.42822
C23: 2 | D23: 300675 | E23: 1631 | F23: PTO. MADRYN - SIERRA GRANDE | G23: 132 | H23: 121.5 | I23: 317.235285 | J23: 2016-03-22T08:49:00 | K23: 2016-03-22T15:00:00 | L23: 6.183333333 | M23: 371 | N23: P | O23: -- | P23: 588.1542184 | Q23: -- | R23: -- | S23: -- | T23: -- | U23: -- | V23: -- | W23: -- | X23: -- | Y23: -- | Z23: SI | AA23: 588.1542184
I24: 65.27475 | P24: -- | Q24: -- | R24: -- | S24: -- | T24: -- | U24: -- | V24: -- | W24: -- | X24: -- | Y24: --
I25: 65.27475 | P25: -- | Q25: -- | R25: -- | S25: -- | T25: -- | U25: -- | V25: -- | W25: -- | X25: -- | Y25: --
I26: 65.27475 | P26: -- | Q26: -- | R26: -- | S26: -- | T26: -- | U26: -- | V26: -- | W26: -- | X26: -- | Y26: --
I27: 65.27475 | P27: -- | Q27: -- | R27: -- | S27: -- | T27: -- | U27: -- | V27: -- | W27: -- | X27: -- | Y27: -- | Z27: =IF(F27="","","SI") -> 
I28: 65.27475 | P28: -- | Q28: -- | R28: -- | S28: -- | T28: -- | U28: -- | V28: -- | W28: -- | X28: -- | Y28: --
O30: =IF(F30="","","--") -> 
I32: 65.27475 | P32: -- | Q32: -- | R32: -- | S32: -- | T32: -- | U32: -- | V32: -- | W32: -- | X32: -- | Y32: --
I33: 65.27475 | P33: -- | Q33: -- | R33: -- | S33: -- | T33: -- | U33: -- | V33: -- | W33: -- | X33: -- | Y33: --
I34: 65.27475 | P34: -- | Q34: -- | R34: -- | S34: -- | T34: -- | U34: -- | V34: -- | W34: -- | X34: -- | Y34: --
I35: 65.27475 | P35: -- | Q35: -- | R35: -- | S35: -- | T35: -- | U35: -- | V35: -- | W35: -- | X35: -- | Y35: --
I36: 65.27475 | P36: -- | Q36: -- | R36: -- | S36: -- | T36: -- | U36: -- | V36: -- | W36: -- | X36: -- | Y36: --
I37: 65.27475 | O37: =IF(F37="","","--") ->  | P37: -- | Q37: -- | R37: -- | S37: -- | T37: -- | U37: -- | V37: -- | W37: -- | X37: -- | Y37: -- | Z37: =IF(F37="","","SI") -> 
I38: 65.27475 | P38: -- | Q38: -- | R38: -- | S38: -- | T38: -- | U38: -- | V38: -- | W38: -- | X38: -- | Y38: --
I39: =IF(H39>25,H39,25)*IF(G39=330,$G$16,$G$17)/100 -> 65.27475 | L39: =IF(F39="","",(K39-J39)*24) ->  | M39: =IF(F39="","",ROUND((K39-J39)*24*60,0)) ->  | O39: =IF(F39="","","--") ->  | P39: =IF(N39="P",ROUND(M39/60,2)*I39*$L$17*0.01,"--") -> -- | Q39: =IF(N39="RP",ROUND(M39/60,2)*I39*$L$17*0.01*O39/100,"--") -> -- | R39: =IF(N39="F",I39*$L$17,"--") -> -- | S39: =IF(AND(M39>10,N39="F"),I39*$L$17*IF(M39>180,3,ROUND(M39/60,2)),"--") -> -- | T39: =IF(AND(M39>180,N39="F"),(ROUND(M39/60,2)-3)*I39*$L$17*0.1,"--") -> -- | U39: =IF(N39="R",I39*$L$17*O39/100,"--") -> -- | V39: =IF(AND(M39>10,N39="R"),I39*$L$17*O39/100*IF(M39>180,3,ROUND(M39/60,2)),"--") -> -- | W39: =IF(AND(M39>180,N39="R"),(ROUND(M39/60,2)-3)*O39/100*I39*$L$17*0.1,"--") -> -- | X39: =IF(N39="RF",ROUND(M39/60,2)*I39*$L$17*0.1,"--") -> -- | Y39: =IF(N39="RR",ROUND(M39/60,2)*O39/100*I39*$L$17*0.1,"--") -> -- | Z39: =IF(F39="","","SI") ->  | AA39: =IF(F39="","",SUM(P39:Y39)*IF(Z39="SI",1,2)) -> 
I40: =IF(H40>25,H40,25)*IF(G40=330,$G$16,$G$17)/100 -> 65.27475 | L40: =IF(F40="","",(K40-J40)*24) ->  | M40: =IF(F40="","",ROUND((K40-J40)*24*60,0)) ->  | O40: =IF(F40="","","--") ->  | P40: =IF(N40="P",ROUND(M40/60,2)*I40*$L$17*0.01,"--") -> -- | Q40: =IF(N40="RP",ROUND(M40/60,2)*I40*$L$17*0.01*O40/100,"--") -> -- | R40: =IF(N40="F",I40*$L$17,"--") -> -- | S40: =IF(AND(M40>10,N40="F"),I40*$L$17*IF(M40>180,3,ROUND(M40/60,2)),"--") -> -- | T40: =IF(AND(M40>180,N40="F"),(ROUND(M40/60,2)-3)*I40*$L$17*0.1,"--") -> -- | U40: =IF(N40="R",I40*$L$17*O40/100,"--") -> -- | V40: =IF(AND(M40>10,N40="R"),I40*$L$17*O40/100*IF(M40>180,3,ROUND(M40/60,2)),"--") -> -- | W40: =IF(AND(M40>180,N40="R"),(ROUND(M40/60,2)-3)*O40/100*I40*$L$17*0.1,"--") -> -- | X40: =IF(N40="RF",ROUND(M40/60,2)*I40*$L$17*0.1,"--") -> -- | Y40: =IF(N40="RR",ROUND(M40/60,2)*O40/100*I40*$L$17*0.1,"--") -> -- | Z40: =IF(F40="","","SI") ->  | AA40: =IF(F40="","",SUM(P40:Y40)*IF(Z40="SI",1,2)) -> 
I41: =IF(H41>25,H41,25)*IF(G41=330,$G$16,$G$17)/100 -> 65.27475 | L41: =IF(F41="","",(K41-J41)*24) ->  | M41: =IF(F41="","",ROUND((K41-J41)*24*60,0)) ->  | O41: =IF(F41="","","--") ->  | P41: =IF(N41="P",ROUND(M41/60,2)*I41*$L$17*0.01,"--") -> -- | Q41: =IF(N41="RP",ROUND(M41/60,2)*I41*$L$17*0.01*O41/100,"--") -> -- | R41: =IF(N41="F",I41*$L$17,"--") -> -- | S41: =IF(AND(M41>10,N41="F"),I41*$L$17*IF(M41>180,3,ROUND(M41/60,2)),"--") -> -- | T41: =IF(AND(M41>180,N41="F"),(ROUND(M41/60,2)-3)*I41*$L$17*0.1,"--") -> -- | U41: =IF(N41="R",I41*$L$17*O41/100,"--") -> -- | V41: =IF(AND(M41>10,N41="R"),I41*$L$17*O41/100*IF(M41>180,3,ROUND(M41/60,2)),"--") -> -- | W41: =IF(AND(M41>180,N41="R"),(ROUND(M41/60,2)-3)*O41/100*I41*$L$17*0.1,"--") -> -- | X41: =IF(N41="RF",ROUND(M41/60,2)*I41*$L$17*0.1,"--") -> -- | Y41: =IF(N41="RR",ROUND(M41/60,2)*O41/100*I41*$L$17*0.1,"--") -> -- | Z41: =IF(F41="","","SI") ->  | AA41: =IF(F41="","",SUM(P41:Y41)*IF(Z41="SI",1,2)) -> 
C43: (²) | D43: P - PROGRAMADA ; F - FORZADA | P43: =ROUND(SUM(P20:P42),2) -> 588.15 | Q43: 0 | R43: 4856.44 | S43: 13937.99 | T43: 0 | U43: 0 | V43: 0 | W43: 0 | X43: 0 | Y43: 0 | AA43: =ROUND(SUM(AA20:AA42),2) -> 19382.58

Sheet LI-EDERSA-03 (1)
B2: =+'TOT-0316'!B2 -> ANEXO III al Memorandum D.T.E.E. N° 279 / 2017
A4: ENTE NACIONAL REGULADOR
A5: DE LA ELECTRICIDAD
F8: SISTEMA DE TRANSPORTE DE ENERGÍA ELÉCTRICA POR DISTRIBUCIÓN TRONCAL - TRANSPA S.A.
F10: 1.2.- Transportista Independiente E.D.E.R.S.A.
B12: =+'TOT-0316'!B14 -> Desde el 01 al 31 de Marzo de 2016
F15: $/100 km-h : LINEAS 330 kV | G15: -
F16: $/100 km-h : LINEAS 132 kV | G16: 69.722 | K16: FACTOR DE PENALIZACION K = | L16: =30*'TOT-0316'!B13 -> 30 | M16: =IF(L16=30," ",IF(L16=60,"Coeficiente duplicado por tasa de falla >4 Sal. x año/100 km.","REVISAR COEFICIENTE")) -> 
C18: 3 | D18: 4 | E18: 5 | F18: 6 | G18: 7 | H18: 8 | I18: 9 | J18: 10 | K18: 11 | L18: 12 | M18: 13 | N18: 14 | O18: 15 | P18: 16 | Q18: 17 | R18: 18 | S18: 19 | T18: 20 | U18: 21 | V18: 22 | W18: 23 | X18: 24 | Y18: 25 | Z18: 26 | AA18: 27
C19: N° | D19: INDISP | E19: ID EQUIPO | F19: LÍNEAS | G19: U [kV] | H19: Long. [km] | I19: $/h | J19: Salida | K19: Entrada | L19: Hs. Indisp | M19: Minutos Indisp | N19: Tipo Sal.(²) | O19: C.R. % | P19: PENALIZ. PROGRAM. | Q19: REDUCC. PROGRAM. | R19: PENALIZACION FORZADA Por Salida 1ras 3 hs. hs. Restante | U19: REDUCC. FORZADA Por Salida 1ras 3 hs. hs. Restante | X19: RESTANTE FORZADA | Y19: REDUCC. RESTANTE | Z19: Informó en Térm. | AA19: TOTAL PENALIZAC.
C22: 3 | D22: 299981 | E22: 1635 | F22: S.A. ESTE - VIEDMA | G22: 132 | H22: 162.6000061 | I22: =IF(H22>25,H22,25)*IF(G22=330,$G$15,$G$16)/100 -> 113.3679763 | J22: 2016-03-02T07:49:00 | K22: 2016-03-02T15:42:00 | L22: =IF(F22="","",(K22-J22)*24) -> 7.883333333 | M22: =IF(F22="","",ROUND((K22-J22)*24*60,0)) -> 473 | N22: P | O22: =IF(F22="","","--") -> -- | P22: =IF(N22="P",ROUND(M22/60,2)*I22*$L$16*0.01,"--") -> 268.0018959 | Q22: =IF(N22="RP",ROUND(M22/60,2)*I22*$L$16*0.01*O22/100,"--") -> -- | R22: =IF(N22="F",I22*$L$16,"--") -> -- | S22: =IF(AND(M22>10,N22="F"),I22*$L$16*IF(M22>180,3,ROUND(M22/60,2)),"--") -> -- | T22: =IF(AND(M22>180,N22="F"),(ROUND(M22/60,2)-3)*I22*$L$16*0.1,"--") -> -- | U22: =IF(N22="R",I22*$L$16*O22/100,"--") -> -- | V22: =IF(AND(M22>10,N22="R"),I22*$L$16*O22/100*IF(M22>180,3,ROUND(M22/60,2)),"--") -> -- | W22: =IF(AND(M22>180,N22="R"),(ROUND(M22/60,2)-3)*O22/100*I22*$L$16*0.1,"--") -> -- | X22: =IF(N22="RF",ROUND(M22/60,2)*I22*$L$16*0.1,"--") -> -- | Y22: =IF(N22="RR",ROUND(M22/60,2)*O22/100*I22*$L$16*0.1,"--") -> -- | Z22: =IF(F22="","","SI") -> SI | AA22: =IF(F22="","",SUM(P22:Y22)*IF(Z22="SI",1,2)) -> 268.0018959
C23: 4 | D23: 299982 | E23: 1635 | F23: S.A. ESTE - VIEDMA | G23: 132 | H23: 162.6000061 | I23: =IF(H23>25,H23,25)*IF(G23=330,$G$15,$G$16)/100 -> 113.3679763 | J23: 2016-03-03T08:07:00 | K23: 2016-03-03T15:35:00 | L23: 7.466666667 | M23: 448 | N23: P | O23: -- | P23: 254.0576348 | Q23: =IF(N23="RP",ROUND(M23/60,2)*I23*$L$16*0.01*O23/100,"--") -> -- | R23: -- | S23: -- | T23: -- | U23: -- | V23: -- | W23: -- | X23: -- | Y23: -- | Z23: SI | AA23: 254.0576348
C24: 5 | D24: 300272 | E24: 1635 | F24: S.A. ESTE - VIEDMA | G24: 132 | H24: 162.6000061 | I24: 113.3679763 | J24: 2016-03-08T08:01:00 | K24: 2016-03-08T15:54:00 | L24: 7.883333333 | M24: 473 | N24: P | O24: -- | P24: 268.0018959 | Q24: -- | R24: -- | S24: -- | T24: -- | U24: -- | V24: -- | W24: -- | X24: -- | Y24: -- | Z24: SI | AA24: 268.0018959
C25: 6 | D25: 300481 | E25: 1635 | F25: S.A. ESTE - VIEDMA | G25: 132 | H25: 162.6000061 | I25: 113.3679763 | J25: 2016-03-15T08:19:00 | K25: 2016-03-15T10:22:00 | L25: 2.05 | M25: 123 | N25: P | O25: -- | P25: 69.7213054 | Q25: -- | R25: -- | S25: -- | T25: -- | U25: -- | V25: -- | W25: -- | X25: -- | Y25: -- | Z25: SI | AA25: 69.7213054
C26: 7 | D26: 300946 | E26: 1635 | F26: S.A. ESTE - VIEDMA | G26: 132 | H26: 162.6000061 | I26: 113.3679763 | J26: 2016-03-30T08:07:00 | K26: 2016-03-30T15:05:00 | L26: 6.966666667 | M26: 418 | N26: P | O26: =IF(F26="","","--") -> -- | P26: 237.0524384 | Q26: -- | R26: -- | S26: -- | T26: -- | U26: -- | V26: -- | W26: -- | X26: -- | Y26: -- | Z26: SI | AA26: 237.0524384
I27: 17.4305 | P27: -- | Q27: -- | R27: -- | S27: -- | T27: -- | U27: -- | V27: -- | W27: -- | X27: -- | Y27: -- | Z27: =IF(F27="","","SI") -> 
I28: 17.4305 | P28: -- | Q28: -- | R28: -- | S28: -- | T28: -- | U28: -- | V28: -- | W28: -- | X28: -- | Y28: --
I29: 17.4305 | P29: -- | Q29: -- | R29: -- | S29: -- | T29: -- | U29: -- | V29: -- | W29: -- | X29: -- | Y29: --
I30: 17.4305 | P30: -- | Q30: -- | R30: -- | S30: -- | T30: -- | U30: -- | V30: -- | W30: -- | X30: -- | Y30: --
I31: 17.4305 | P31: -- | Q31: -- | R31: -- | S31: -- | T31: -- | U31: -- | V31: -- | W31: -- | X31: -- | Y31: --
I32: 17.4305 | P32: -- | Q32: -- | R32: -- | S32: -- | T32: -- | U32: -- | V32: -- | W32: -- | X32: -- | Y32: --
I33: 17.4305 | P33: -- | Q33: -- | R33: -- | S33: -- | T33: -- | U33: -- | V33: -- | W33: -- | X33: -- | Y33: --
I34: 17.4305 | P34: -- | Q34: -- | R34: -- | S34: -- | T34: -- | U34: -- | V34: -- | W34: -- | X34: -- | Y34: --
I35: 17.4305 | P35: -- | Q35: -- | R35: -- | S35: -- | T35: -- | U35: -- | V35: -- | W35: -- | X35: -- | Y35: --
I36: 17.4305 | P36: -- | Q36: -- | R36: -- | S36: -- | T36: -- | U36: -- | V36: -- | W36: -- | X36: -- | Y36: --
I37: 17.4305 | P37: -- | Q37: -- | R37: -- | S37: -- | T37: -- | U37: -- | V37: -- | W37: -- | X37: -- | Y37: --
I38: 17.4305 | P38: -- | Q38: -- | R38: -- | S38: -- | T38: -- | U38: -- | V38: -- | W38: -- | X38: -- | Y38: --
I39: =IF(H39>25,H39,25)*IF(G39=330,$G$15,$G$16)/100 -> 17.4305 | P39: -- | Q39: =IF(N39="RP",ROUND(M39/60,2)*I39*$L$16*0.01*O39/100,"--") -> -- | R39: -- | S39: -- | T39: -- | U39: -- | V39: -- | W39: -- | X39: -- | Y39: --
I40: =IF(H40>25,H40,25)*IF(G40=330,$G$15,$G$16)/100 -> 17.4305 | P40: -- | Q40: =IF(N40="RP",ROUND(M40/60,2)*I40*$L$16*0.01*O40/100,"--") -> -- | R40: -- | S40: -- | T40: -- | U40: -- | V40: -- | W40: -- | X40: -- | Y40: --
I41: =IF(H41>25,H41,25)*IF(G41=330,$G$15,$G$16)/100 -> 17.4305 | P41: -- | Q41: =IF(N41="RP",ROUND(M41/60,2)*I41*$L$16*0.01*O41/100,"--") -> -- | R41: -- | S41: -- | T41: -- | U41: -- | V41: -- | W41: -- | X41: -- | Y41: --
C43: (²) | D43: P - PROGRAMADA | P43: =ROUND(SUM(P20:P42),2) -> 1096.84 | Q43: 0 | R43: 0 | S43: 0 | T43: 0 | U43: 0 | V43: 0 | W43: 0 | X43: 0 | Y43: 0 | AA43: =ROUND(SUM(AA20:AA42),2) -> 1096.84

Sheet TR-03 (1)
B2: =+'TOT-0316'!B2 -> ANEXO III al Memorandum D.T.E.E. N° 279 / 2017
A4: ENTE NACIONAL REGULADOR
A5: DE LA ELECTRICIDAD
F8: SISTEMA DE TRANSPORTE DE ENERGÍA ELÉCTRICA POR DISTRIBUCIÓN TRONCAL - TRANSPA S.A.
F10: 2.- CONEXIÓN
F12: 2.1.- Transformación
F14: 2.1.1.- Equipamiento propio
B16: =+'TOT-0316'!B14 -> Desde el 01 al 31 de Marzo de 2016
F18: Por Transformador por MVA $ = | I18: 0.909
F19: Coeficiente de penalización por salida forzada = | I19: =30*'TOT-0316'!B13 -> 30 | K19: =IF(I19=30," ",IF(I19=60,"Coeficiente duplicado por tasa de falla >4 Sal. x año/100 km.","REVISAR COEFICIENTE")) -> 
C20: 3 | D20: 4 | E20: 5 | F20: 6 | G20: 7 | H20: 8 | I20: 9 | J20: 10 | K20: 11 | L20: 12 | M20: 13 | N20: 14 | O20: 15 | P20: 16 | Q20: 17 | R20: 18 | S20: 19 | T20: 20 | U20: 21 | V20: 22 | W20: 23 | X20: 24 | Y20: 25 | Z20: 26 | AA20: 27 | AB20: 28 | AC20: 29
C21: N° | D21: INDISP | E21: ID EQUIPO | F21: ESTACIÓN TRANSFORMADORA | G21: EQUIPO | H21: POT. [MVA] | I21: U [kV] | J21: $/h | K21: Salida | L21: Entrada | M21: Hs. Indisp. | N21: Mtos. Indisp. | O21: Tipo Sal.(²) | P21: AUT. | Q21: REST. % | R21: E.N.S. | S21: K (P;ENS) | T21: PENALIZ. PROGRAM. | U21: REDUCC. PROGRAM. | V21: PENALIZACIONES Por Salida hs. Restantes | X21: PENALIZACIONES Por Salida hs. Restantes | Z21: RESTANTE FORZADA | AA21: REDUCC. RESTANTE | AB21: Informó en Térm. | AC21: TOTAL PENALIZAC.
C24: 8 | D24: 299979 | E24: 1797 | F24: PLANTA DE ALUMINIO DGPA | G24: TRAFO 4 | H24: 40 | I24: 132/33/13,2 | J24: =H24*$I$18 -> 36.36 | K24: 2016-03-05T08:30:00 | L24: 2016-03-05T09:03:00 | M24: =IF(F24="","",(L24-K24)*24) -> 0.55 | N24: =IF(F24="","",ROUND((L24-K24)*24*60,0)) -> 33 | O24: F | P24: =IF(F24="","",IF(OR(O24="P",O24="RP"),"--","NO")) -> NO | Q24: =IF(F24="","","--") -> -- | R24: =IF(F24="","","NO") -> NO | S24: =$I$19*IF(OR(O24="P",O24="RP"),0.1,1)*IF(R24="SI",1,0.1) -> 3 | T24: =IF(O24="P",J24*S24*ROUND(N24/60,2),"--") -> -- | U24: =IF(O24="RP",J24*S24*ROUND(N24/60,2)*Q24/100,"--") -> -- | V24: =IF(AND(O24="F",P24="NO"),J24*S24,"--") -> 109.08 | W24: =IF(O24="F",J24*S24*ROUND(N24/60,2),"--") -> 59.994 | X24: =IF(AND(O24="R",P24="NO"),J24*S24*Q24/100,"--") -> -- | Y24: =IF(O24="R",J24*S24*ROUND(N24/60,2)*Q24/100,"--") -> -- | Z24: =IF(O24="RF",J24*S24*ROUND(N24/60,2),"--") -> -- | AA24: =IF(O24="RR",J24*S24*ROUND(N24/60,2)*Q24/100,"--") -> -- | AB24: =IF(F24="","","SI") -> SI | AC24: =IF(F24="","",SUM(T24:AA24)*IF(AB24="SI",1,2)) -> 169.074
C25: 9 | D25: 299980 | E25: 1797 | F25: PLANTA DE ALUMINIO DGPA | G25: TRAFO 4 | H25: 40 | I25: 132/33/13,2 | J25: 36.36 | K25: 2016-03-06T08:09:00 | L25: 2016-03-06T09:04:00 | M25: 0.9166666667 | N25: 55 | O25: F | P25: NO | Q25: -- | R25: NO | S25: 3 | T25: -- | U25: -- | V25: 109.08 | W25: 100.3536 | X25: -- | Y25: -- | Z25: -- | AA25: -- | AB25: SI | AC25: 209.4336
C26: 10 | D26: 300267 | E26: 1797 | F26: PLANTA DE ALUMINIO DGPA | G26: TRAFO 4 | H26: 40 | I26: 132/33/13,2 | J26: 36.36 | K26: 2016-03-07T08:48:00 | L26: 2016-03-07T15:32:00 | M26: 6.733333333 | N26: 404 | O26: P | P26: -- | Q26: -- | R26: NO | S26: 0.3 | T26: 73.41084 | U26: -- | V26: -- | W26: -- | X26: -- | Y26: -- | Z26: -- | AA26: -- | AB26: SI | AC26: 73.41084
C27: 11 | D27: 300268 | E27: 1796 | F27: PICO TRUNCADO 1 | G27: TRAFO 2 | H27: 5 | I27: 33/13,2 | J27: 4.545 | K27: 2016-03-07T09:00:00 | L27: 2016-03-11T11:47:00 | M27: 98.78333333 | N27: 5927 | O27: P | P27: -- | Q27: -- | R27: NO | S27: 0.3 | T27: 134.68653 | U27: -- | V27: -- | W27: -- | X27: -- | Y27: -- | Z27: -- | AA27: -- | AB27: SI | AC27: 134.68653
C28: 12 | D28: 300269 | E28: 1797 | F28: PLANTA DE ALUMINIO DGPA | G28: TRAFO 4 | H28: 40 | I28: 132/33/13,2 | J28: 36.36 | K28: 2016-03-08T09:53:00 | L28: 2016-03-08T13:49:00 | M28: 3.933333333 | N28: 236 | O28: P | P28: -- | Q28: -- | R28: NO | S28: 0.3 | T28: 42.86844 | U28: -- | V28: -- | W28: -- | X28: -- | Y28: -- | Z28: -- | AA28: -- | AB28: SI | AC28: 42.86844
C29: 13 | D29: 300270 | E29: 1798 | F29: PLANTA DE ALUMINIO DGPA | G29: TRAFO 2 | H29: 40 | I29: 132/33/13,2 | J29: 36.36 | K29: 2016-03-09T09:16:00 | L29: 2016-03-09T15:26:00 | M29: 6.166666667 | N29: 370 | O29: P | P29: -- | Q29: -- | R29: NO | S29: =$I$19*IF(OR(O29="P",O29="RP"),0.1,1)*IF(R29="SI",1,0.1) -> 0.3 | T29: =IF(O29="P",J29*S29*ROUND(N29/60,2),"--") -> 67.30236 | U29: =IF(O29="RP",J29*S29*ROUND(N29/60,2)*Q29/100,"--") -> -- | V29: =IF(AND(O29="F",P29="NO"),J29*S29,"--") -> -- | W29: =IF(O29="F",J29*S29*ROUND(N29/60,2),"--") -> -- | X29: =IF(AND(O29="R",P29="NO"),J29*S29*Q29/100,"--") -> -- | Y29: =IF(O29="R",J29*S29*ROUND(N29/60,2)*Q29/100,"--") -> -- | Z29: =IF(O29="RF",J29*S29*ROUND(N29/60,2),"--") -> -- | AA29: =IF(O29="RR",J29*S29*ROUND(N29/60,2)*Q29/100,"--") -> -- | AB29: =IF(F29="","","SI") -> SI | AC29: =IF(F29="","",SUM(T29:AA29)*IF(AB29="SI",1,2)) -> 67.30236
C30: 14 | D30: 300479 | E30: 5682 | F30: RAWSON | G30: TRAFO 2 | H30: 15 | I30: 132/33/13,2 | J30: 13.635 | K30: 2016-03-15T08:23:00 | L30: 2016-03-15T11:25:00 | M30: 3.033333333 | N30: 182 | O30: P | P30: -- | Q30: -- | R30: NO | S30: 0.3 | T30: 12.394215 | U30: -- | V30: -- | W30: -- | X30: -- | Y30: -- | Z30: -- | AA30: -- | AB30: SI | AC30: 12.394215
J31: 0 | S31: 3 | T31: -- | U31: -- | V31: -- | W31: -- | X31: -- | Y31: -- | Z31: -- | AA31: --
J32: 0 | S32: 3 | T32: -- | U32: -- | V32: -- | W32: -- | X32: -- | Y32: -- | Z32: -- | AA32: --
J33: 0 | S33: 3 | T33: -- | U33: -- | V33: -- | W33: -- | X33: -- | Y33: -- | Z33: -- | AA33: --
J34: 0 | S34: 3 | T34: -- | U34: -- | V34: -- | W34: -- | X34: -- | Y34: -- | Z34: -- | AA34: --
J35: 0 | S35: 3 | T35: -- | U35: -- | V35: -- | W35: -- | X35: -- | Y35: -- | Z35: -- | AA35: --
J36: 0 | S36: 3 | T36: -- | U36: -- | V36: -- | W36: -- | X36: -- | Y36: -- | Z36: -- | AA36: --
J37: 0 | S37: 3 | T37: -- | U37: -- | V37: -- | W37: -- | X37: -- | Y37: -- | Z37: -- | AA37: --
J38: 0 | S38: 3 | T38: -- | U38: -- | V38: -- | W38: -- | X38: -- | Y38: -- | Z38: -- | AA38: --
J39: 0 | S39: 3 | T39: -- | U39: -- | V39: -- | W39: -- | X39: -- | Y39: -- | Z39: -- | AA39: --
J40: 0 | S40: =$I$19*IF(OR(O40="P",O40="RP"),0.1,1)*IF(R40="SI",1,0.1) -> 3 | T40: =IF(O40="P",J40*S40*ROUND(N40/60,2),"--") -> -- | U40: =IF(O40="RP",J40*S40*ROUND(N40/60,2)*Q40/100,"--") -> -- | V40: =IF(AND(O40="F",P40="NO"),J40*S40,"--") -> -- | W40: =IF(O40="F",J40*S40*ROUND(N40/60,2),"--") -> -- | X40: =IF(AND(O40="R",P40="NO"),J40*S40*Q40/100,"--") -> -- | Y40: =IF(O40="R",J40*S40*ROUND(N40/60,2)*Q40/100,"--") -> -- | Z40: =IF(O40="RF",J40*S40*ROUND(N40/60,2),"--") -> -- | AA40: =IF(O40="RR",J40*S40*ROUND(N40/60,2)*Q40/100,"--") -> -- | AB40: =IF(F40="","","SI") ->  | AC40: =IF(F40="","",SUM(T40:AA40)*IF(AB40="SI",1,2)) -> 
J41: 0 | M41: =IF(F41="","",(L41-K41)*24) ->  | N41: =IF(F41="","",ROUND((L41-K41)*24*60,0)) ->  | S41: =$I$19*IF(OR(O41="P",O41="RP"),0.1,1)*IF(R41="SI",1,0.1) -> 3 | T41: =IF(O41="P",J41*S41*ROUND(N41/60,2),"--") -> -- | U41: =IF(O41="RP",J41*S41*ROUND(N41/60,2)*Q41/100,"--") -> -- | V41: =IF(AND(O41="F",P41="NO"),J41*S41,"--") -> -- | W41: =IF(O41="F",J41*S41*ROUND(N41/60,2),"--") -> -- | X41: =IF(AND(O41="R",P41="NO"),J41*S41*Q41/100,"--") -> -- | Y41: =IF(O41="R",J41*S41*ROUND(N41/60,2)*Q41/100,"--") -> -- | Z41: =IF(O41="RF",J41*S41*ROUND(N41/60,2),"--") -> -- | AA41: =IF(O41="RR",J41*S41*ROUND(N41/60,2)*Q41/100,"--") -> -- | AB41: =IF(F41="","","SI") ->  | AC41: =IF(F41="","",SUM(T41:AA41)*IF(AB41="SI",1,2)) -> 
J42: 0 | M42: =IF(F42="","",(L42-K42)*24) ->  | N42: =IF(F42="","",ROUND((L42-K42)*24*60,0)) ->  | S42: =$I$19*IF(OR(O42="P",O42="RP"),0.1,1)*IF(R42="SI",1,0.1) -> 3 | T42: =IF(O42="P",J42*S42*ROUND(N42/60,2),"--") -> -- | U42: =IF(O42="RP",J42*S42*ROUND(N42/60,2)*Q42/100,"--") -> -- | V42: =IF(AND(O42="F",P42="NO"),J42*S42,"--") -> -- | W42: =IF(O42="F",J42*S42*ROUND(N42/60,2),"--") -> -- | X42: =IF(AND(O42="R",P42="NO"),J42*S42*Q42/100,"--") -> -- | Y42: =IF(O42="R",J42*S42*ROUND(N42/60,2)*Q42/100,"--") -> -- | Z42: =IF(O42="RF",J42*S42*ROUND(N42/60,2),"--") -> -- | AA42: =IF(O42="RR",J42*S42*ROUND(N42/60,2)*Q42/100,"--") -> -- | AB42: =IF(F42="","","SI") ->  | AC42: =IF(F42="","",SUM(T42:AA42)*IF(AB42="SI",1,2)) -> 
J43: 0 | M43: =IF(F43="","",(L43-K43)*24) ->  | N43: =IF(F43="","",ROUND((L43-K43)*24*60,0)) ->  | S43: =$I$19*IF(OR(O43="P",O43="RP"),0.1,1)*IF(R43="SI",1,0.1) -> 3 | T43: =IF(O43="P",J43*S43*ROUND(N43/60,2),"--") -> -- | U43: =IF(O43="RP",J43*S43*ROUND(N43/60,2)*Q43/100,"--") -> -- | V43: =IF(AND(O43="F",P43="NO"),J43*S43,"--") -> -- | W43: =IF(O43="F",J43*S43*ROUND(N43/60,2),"--") -> -- | X43: =IF(AND(O43="R",P43="NO"),J43*S43*Q43/100,"--") -> -- | Y43: =IF(O43="R",J43*S43*ROUND(N43/60,2)*Q43/100,"--") -> -- | Z43: =IF(O43="RF",J43*S43*ROUND(N43/60,2),"--") -> -- | AA43: =IF(O43="RR",J43*S43*ROUND(N43/60,2)*Q43/100,"--") -> -- | AB43: =IF(F43="","","SI") ->  | AC43: =IF(F43="","",SUM(T43:AA43)*IF(AB43="SI",1,2)) -> 
C45: (²) | D45: P - PROGRAMADA ; F - FORZADA | T45: =SUM(T22:T44) -> 330.662385 | U45: 0 | V45: 218.16 | W45: 160.3476 | X45: 0 | Y45: 0 | Z45: 0 | AA45: 0 | AC45: =ROUND(SUM(AC22:AC44),2) -> 709.17

Sheet TR-EDERSA-03 (1)
B2: ='TOT-0316'!B2 -> ANEXO III al Memorandum D.T.E.E. N° 279 / 2017
A4: ENTE NACIONAL REGULADOR
A5: DE LA ELECTRICIDAD
F8: SISTEMA DE TRANSPORTE DE ENERGÍA ELÉCTRICA POR DISTRIBUCIÓN TRONCAL - TRANSPA S.A.
F11: 2.1.2.- Transportista Independiente E.D.E.R.S.A.
B14: ='TOT-0316'!B14 -> Desde el 01 al 31 de Marzo de 2016
F17: Por Transformador por MVA $ = | I17: 0.243
F18: Coeficiente de penalización por salida forzada = | I18: =30*'TOT-0316'!B13 -> 30 | K18: =IF(I18=30," ",IF(I18=60,"Coeficiente duplicado por tasa de falla >4 Sal. x año/100 km.","REVISAR COEFICIENTE")) -> 
C20: 3 | D20: 4 | E20: 5 | F20: 6 | G20: 7 | H20: 8 | I20: 9 | J20: 10 | K20: 11 | L20: 12 | M20: 13 | N20: 14 | O20: 15 | P20: 16 | Q20: 17 | R20: 18 | S20: 19 | T20: 20 | U20: 21 | V20: 22 | W20: 23 | X20: 24 | Y20: 25 | Z20: 26 | AA20: 27 | AB20: 28 | AC20: 29
C21: N° | D21: INDISP | E21: ID EQUIPO | F21: ESTACIÓN TRANSFORMADORA | G21: EQUIPO | H21: POT. [MVA] | I21: U [kV] | J21: $/h | K21: Salida | L21: Entrada | M21: Hs. Indisp. | N21: Mtos. Indisp. | O21: Tipo Sal.(²) | P21: AUT. | Q21: REST. % | R21: E.N.S. | S21: K (P;ENS) | T21: PENALIZ. PROGRAM. | U21: REDUCC. PROGRAM. | V21: PENALIZACIONES Por Salida hs. Restantes | X21: PENALIZACIONES Por Salida hs. Restantes | Z21: RESTANTE FORZADA | AA21: REDUCC. RESTANTE | AB21: Informó en Térm. | AC21: TOTAL PENALIZAC.
C24: 15 | D24: 300273 | E24: 4970 | F24: S. ANTONIO ESTE | G24: TRAFO 1 | H24: 15 | I24: 132/33/13,2 | J24: =H24*$I$17 -> 3.645 | K24: 2016-03-09T09:22:00 | L24: 2016-03-09T13:48:00 | M24: =IF(F24="","",(L24-K24)*24) -> 4.433333333 | N24: =IF(F24="","",ROUND((L24-K24)*24*60,0)) -> 266 | O24: P | P24: =IF(F24="","",IF(OR(O24="P",O24="RP"),"--","NO")) -> -- | Q24: =IF(F24="","","--") -> -- | R24: =IF(F24="","","NO") -> NO | S24: =$I$18*IF(OR(O24="P",O24="RP"),0.1,1)*IF(R24="SI",1,0.1) -> 0.3 | T24: =IF(O24="P",J24*S24*ROUND(N24/60,2),"--") -> 4.844205 | U24: =IF(O24="RP",J24*S24*ROUND(N24/60,2)*Q24/100,"--") -> -- | V24: =IF(AND(O24="F",P24="NO"),J24*S24,"--") -> -- | W24: =IF(O24="F",J24*S24*ROUND(N24/60,2),"--") -> -- | X24: =IF(AND(O24="R",P24="NO"),J24*S24*Q24/100,"--") -> -- | Y24: =IF(O24="R",J24*S24*ROUND(N24/60,2)*Q24/100,"--") -> -- | Z24: =IF(O24="RF",J24*S24*ROUND(N24/60,2),"--") -> -- | AA24: =IF(O24="RR",J24*S24*ROUND(N24/60,2)*Q24/100,"--") -> -- | AB24: =IF(F24="","","SI") -> SI | AC24: =IF(F24="","",SUM(T24:AA24)*IF(AB24="SI",1,2)) -> 4.844205
C25: 16 | D25: 300696 | E25: 1807 | F25: SIERRA GRANDE | G25: TRAFO 10 | H25: 35 | I25: 132/33/13,2 | J25: 8.505 | K25: 2016-03-22T22:14:00 | L25: 2016-03-23T04:27:00 | M25: 6.216666667 | N25: 373 | O25: F | P25: =IF(F25="","",IF(OR(O25="P",O25="RP"),"--","NO")) -> NO | Q25: -- | R25: NO | S25: 3 | T25: -- | U25: -- | V25: 25.515 | W25: 158.7033 | X25: -- | Y25: -- | Z25: -- | AA25: -- | AB25: SI | AC25: 184.2183
C26: 17 | D26: 300944 | E26: 1807 | F26: SIERRA GRANDE | G26: TRAFO 10 | H26: 35 | I26: 132/33/13,2 | J26: 8.505 | K26: 2016-03-28T11:04:00 | L26: 2016-03-28T15:22:00 | M26: 4.3 | N26: 258 | O26: P | P26: -- | Q26: -- | R26: NO | S26: 0.3 | T26: 10.97145 | U26: -- | V26: -- | W26: -- | X26: -- | Y26: -- | Z26: -- | AA26: -- | AB26: SI | AC26: 10.97145
J27: 0 | S27: 3 | T27: -- | U27: -- | V27: -- | W27: -- | X27: -- | Y27: -- | Z27: -- | AA27: --
J28: 0 | S28: 3 | T28: -- | U28: -- | V28: -- | W28: -- | X28: -- | Y28: -- | Z28: -- | AA28: --
J29: 0 | S29: 3 | T29: -- | U29: -- | V29: -- | W29: -- | X29: -- | Y29: -- | Z29: -- | AA29: --
J30: 0 | S30: 3 | T30: -- | U30: -- | V30: -- | W30: -- | X30: -- | Y30: -- | Z30: -- | AA30: --
J31: 0 | R31: =IF(F31="","","NO") ->  | S31: 3 | T31: -- | U31: -- | V31: -- | W31: -- | X31: -- | Y31: -- | Z31: -- | AA31: --
J32: 0 | S32: 3 | T32: -- | U32: -- | V32: -- | W32: -- | X32: -- | Y32: -- | Z32: -- | AA32: --
J33: 0 | S33: 3 | T33: -- | U33: -- | V33: -- | W33: -- | X33: -- | Y33: -- | Z33: -- | AA33: --
J34: 0 | S34: 3 | T34: -- | U34: -- | V34: -- | W34: -- | X34: -- | Y34: -- | Z34: -- | AA34: --
J35: 0 | S35: 3 | T35: -- | U35: -- | V35: -- | W35: -- | X35: -- | Y35: -- | Z35: -- | AA35: --
J36: 0 | S36: 3 | T36: -- | U36: -- | V36: -- | W36: -- | X36: -- | Y36: -- | Z36: -- | AA36: --
J37: 0 | S37: 3 | T37: -- | U37: -- | V37: -- | W37: -- | X37: -- | Y37: -- | Z37: -- | AA37: --
J38: 0 | S38: 3 | T38: -- | U38: -- | V38: -- | W38: -- | X38: -- | Y38: -- | Z38: -- | AA38: --
J39: 0 | S39: 3 | T39: -- | U39: -- | V39: -- | W39: -- | X39: -- | Y39: -- | Z39: -- | AA39: --
J40: 0 | S40: 3 | T40: -- | U40: -- | V40: -- | W40: -- | X40: -- | Y40: -- | Z40: -- | AA40: --
J41: 0 | S41: 3 | T41: -- | U41: -- | V41: -- | W41: -- | X41: -- | Y41: -- | Z41: -- | AA41: --
J42: 0 | S42: 3 | T42: -- | U42: -- | V42: -- | W42: -- | X42: -- | Y42: -- | Z42: -- | AA42: --
J43: 0 | S43: 3 | T43: -- | U43: -- | V43: -- | W43: -- | X43: -- | Y43: -- | Z43: -- | AA43: --
C45: (²) | D45: P - PROGRAMADA ; FORZADA | T45: =SUM(T22:T44) -> 15.815655 | U45: 0 | V45: 25.515 | W45: 158.7033 | X45: 0 | Y45: 0 | Z45: 0 | AA45: 0 | AC45: =ROUND(SUM(AC22:AC44),2) -> 200.03

Sheet SA-03 (1)
B2: ='TOT-0316'!B2 -> ANEXO III al Memorandum D.T.E.E. N° 279 / 2017
A4: ENTE NACIONAL REGULADOR
A5: DE LA ELECTRICIDAD
F8: SISTEMA DE TRANSPORTE DE ENERGÍA ELÉCTRICA POR DISTRIBUCIÓN TRONCAL - TRANSPA S.A.
F10: 2.2.- Salidas
F12: 2.2.1.- Equipamiento propio
B14: ='TOT-0316'!B14 -> Desde el 01 al 31 de Marzo de 2016
F16: Salida en 330 kV | G16: 30.358 | H16: =60*'TOT-0316'!B13 -> 60 | J16: =IF(H16=60," ",IF(H16=120,"Coeficiente duplicado por tasa de falla >4 Sal. x año/100 km.","REVISAR COEFICIENTE")) -> 
F17: Salida en 132 kV o 66 kV = | G17: 12.14 | H17: =50*'TOT-0316'!B13 -> 50 | J17: =IF(H17=50," ",IF(H17=100,"Coeficiente duplicado por tasa de falla >4 Sal. x año/100 km.","REVISAR COEFICIENTE")) -> 
F18: Salida en 33 kV | G18: 9.111 | H18: =25*'TOT-0316'!B13 -> 25 | J18: =IF(H18=25," ",IF(H18=50,"Coeficiente duplicado por tasa de falla >4 Sal. x año/100 km.","REVISAR COEFICIENTE")) -> 
F19: Salida en 13,2 kV = | G19: 9.111 | H19: =20*'TOT-0316'!B13 -> 20 | J19: =IF(H19=20," ",IF(H19=40,"Coeficiente duplicado por tasa de falla >4 Sal. x año/100 km.","REVISAR COEFICIENTE")) -> 
C20: 3 | D20: 4 | E20: 5 | F20: 6 | G20: 7 | H20: 8 | I20: 9 | J20: 10 | K20: 11 | L20: 12 | M20: 13 | N20: 14 | O20: 15 | P20: 16 | Q20: 17 | R20: 18 | S20: 19 | T20: 20 | U20: 21 | V20: 22
C21: N° | D21: INDISP | E21: ID EQUIPO | F21: ESTACIÓN TRANSFORMADORA | G21: EQUIPO | H21: U [kV] | I21: $/h | J21: Salida | K21: Entrada | L21: Hs. Indisp. | M21: Mtos. Indisp. | N21: Tipo Sal.(²) | O21: AUT. | P21: K (U) | Q21: PENALIZ. PROGRAM. | R21: PENALIZACIONES Por Salida hs. Restantes | T21: RESTANTE FORZADA | U21: Informó en Térm. | V21: TOTAL PENALIZAC.
C24: 18 | D24: 300271 | E24: 1703 | F24: BARRIO SAN MARTIN | G24: SALIDA ALIMENT. 6 A COOP. | H24: 13.2 | I24: =IF(H24=330,$G$16,IF(AND(H24<=132,H24>=66),$G$17,IF(AND(H24<66,H24>=33),$G$18,$G$19))) -> 9.111 | J24: 2016-03-10T08:02:00 | K24: 2016-03-10T11:07:00 | L24: =IF(F24="","",(K24-J24)*24) -> 3.083333333 | M24: =IF(F24="","",ROUND((K24-J24)*24*60,0)) -> 185 | N24: P | O24: =IF(F24="","",IF(N24="P","--","NO")) -> -- | P24: =IF(H24=330,$H$16,IF(AND(H24<=132,H24>=66),$H$17,IF(AND(H24<66,H24>13.2),$H$18,$H$19))) -> 20 | Q24: =IF(N24="P",I24*P24*ROUND(M24/60,2)*0.1,"--") -> 56.12376 | R24: =IF(AND(N24="F",O24="NO"),I24*P24,"--") -> -- | S24: =IF(N24="F",I24*P24*ROUND(M24/60,2),"--") -> -- | T24: =IF(N24="RF",I24*P24*ROUND(M24/60,2),"--") -> -- | U24: =IF(F24="","","SI") -> SI | V24: =IF(F24="","",SUM(Q24:T24)*IF(U24="SI",1,2)*IF(H24="500/220",0,1)) -> 56.12376
C25: 19 | D25: 300480 | E25: 1698 | F25: BARRIO SAN MARTIN | G25: SALIDA ALIMENT. 1 A COOP. | H25: 13.2 | I25: 9.111 | J25: 2016-03-17T08:00:00 | K25: 2016-03-17T11:16:00 | L25: =IF(F25="","",(K25-J25)*24) -> 3.266666667 | M25: =IF(F25="","",ROUND((K25-J25)*24*60,0)) -> 196 | N25: P | O25: -- | P25: =IF(H25=330,$H$16,IF(AND(H25<=132,H25>=66),$H$17,IF(AND(H25<66,H25>13.2),$H$18,$H$19))) -> 20 | Q25: =IF(N25="P",I25*P25*ROUND(M25/60,2)*0.1,"--") -> 59.58594 | R25: =IF(AND(N25="F",O25="NO"),I25*P25,"--") -> -- | S25: =IF(N25="F",I25*P25*ROUND(M25/60,2),"--") -> -- | T25: =IF(N25="RF",I25*P25*ROUND(M25/60,2),"--") -> -- | U25: =IF(F25="","","SI") -> SI | V25: =IF(F25="","",SUM(Q25:T25)*IF(U25="SI",1,2)*IF(H25="500/220",0,1)) -> 59.58594
C26: 20 | D26: 300945 | E26: 2004 | F26: BARRIO SAN MARTIN | G26: SALIDA ALIMENT. 8 A CONEX. | H26: 13.2 | I26: 9.111 | J26: 2016-03-30T08:28:00 | K26: 2016-03-30T11:27:00 | L26: 2.983333333 | M26: 179 | N26: P | O26: -- | P26: 20 | Q26: 54.30156 | R26: -- | S26: -- | T26: -- | U26: SI | V26: 54.30156
I27: 9.111 | P27: 20 | Q27: -- | R27: -- | S27: -- | T27: --
I28: 9.111 | P28: 20 | Q28: -- | R28: -- | S28: -- | T28: --
I29: 9.111 | P29: 20 | Q29: -- | R29: -- | S29: -- | T29: --
I30: 9.111 | P30: 20 | Q30: -- | R30: -- | S30: -- | T30: --
I31: 9.111 | P31: 20 | Q31: -- | R31: -- | S31: -- | T31: -- | U31: =IF(F31="","","SI") -> 
I32: 9.111 | P32: 20 | Q32: -- | R32: -- | S32: -- | T32: --
I33: 9.111 | P33: 20 | Q33: -- | R33: -- | S33: -- | T33: --
I34: 9.111 | P34: 20 | Q34: -- | R34: -- | S34: -- | T34: --
I35: 9.111 | P35: 20 | Q35: -- | R35: -- | S35: -- | T35: --
I36: 9.111 | P36: 20 | Q36: -- | R36: -- | S36: -- | T36: --
I37: 9.111 | P37: 20 | Q37: -- | R37: -- | S37: -- | T37: --
I38: 9.111 | P38: 20 | Q38: -- | R38: -- | S38: -- | T38: --
I39: 9.111 | P39: 20 | Q39: -- | R39: -- | S39: -- | T39: --
I40: 9.111 | P40: 20 | Q40: -- | R40: -- | S40: -- | T40: --
I41: =IF(H41=330,$G$16,IF(AND(H41<=132,H41>=66),$G$17,IF(AND(H41<66,H41>=33),$G$18,$G$19))) -> 9.111 | L41: =IF(F41="","",(K41-J41)*24) ->  | M41: =IF(F41="","",ROUND((K41-J41)*24*60,0)) ->  | O41: =IF(F41="","",IF(N41="P","--","NO")) ->  | P41: =IF(H41=330,$H$16,IF(AND(H41<=132,H41>=66),$H$17,IF(AND(H41<66,H41>13.2),$H$18,$H$19))) -> 20 | Q41: =IF(N41="P",I41*P41*ROUND(M41/60,2)*0.1,"--") -> -- | R41: =IF(AND(N41="F",O41="NO"),I41*P41,"--") -> -- | S41: =IF(N41="F",I41*P41*ROUND(M41/60,2),"--") -> -- | T41: =IF(N41="RF",I41*P41*ROUND(M41/60,2),"--") -> -- | U41: =IF(F41="","","SI") ->  | V41: =IF(F41="","",SUM(Q41:T41)*IF(U41="SI",1,2)*IF(H41="500/220",0,1)) -> 
I42: =IF(H42=330,$G$16,IF(AND(H42<=132,H42>=66),$G$17,IF(AND(H42<66,H42>=33),$G$18,$G$19))) -> 9.111 | L42: =IF(F42="","",(K42-J42)*24) ->  | M42: =IF(F42="","",ROUND((K42-J42)*24*60,0)) ->  | O42: =IF(F42="","",IF(N42="P","--","NO")) ->  | P42: =IF(H42=330,$H$16,IF(AND(H42<=132,H42>=66),$H$17,IF(AND(H42<66,H42>13.2),$H$18,$H$19))) -> 20 | Q42: =IF(N42="P",I42*P42*ROUND(M42/60,2)*0.1,"--") -> -- | R42: =IF(AND(N42="F",O42="NO"),I42*P42,"--") -> -- | S42: =IF(N42="F",I42*P42*ROUND(M42/60,2),"--") -> -- | T42: =IF(N42="RF",I42*P42*ROUND(M42/60,2),"--") -> -- | U42: =IF(F42="","","SI") ->  | V42: =IF(F42="","",SUM(Q42:T42)*IF(U42="SI",1,2)*IF(H42="500/220",0,1)) -> 
I43: =IF(H43=330,$G$16,IF(AND(H43<=132,H43>=66),$G$17,IF(AND(H43<66,H43>=33),$G$18,$G$19))) -> 9.111 | L43: =IF(F43="","",(K43-J43)*24) ->  | M43: =IF(F43="","",ROUND((K43-J43)*24*60,0)) ->  | O43: =IF(F43="","",IF(N43="P","--","NO")) ->  | P43: =IF(H43=330,$H$16,IF(AND(H43<=132,H43>=66),$H$17,IF(AND(H43<66,H43>13.2),$H$18,$H$19))) -> 20 | Q43: =IF(N43="P",I43*P43*ROUND(M43/60,2)*0.1,"--") -> -- | R43: =IF(AND(N43="F",O43="NO"),I43*P43,"--") -> -- | S43: =IF(N43="F",I43*P43*ROUND(M43/60,2),"--") -> -- | T43: =IF(N43="RF",I43*P43*ROUND(M43/60,2),"--") -> -- | U43: =IF(F43="","","SI") ->  | V43: =IF(F43="","",SUM(Q43:T43)*IF(U43="SI",1,2)*IF(H43="500/220",0,1)) -> 
C45: (²) | D45: P - PROGRAMADA | Q45: =SUM(Q22:Q44) -> 170.01126 | R45: =SUM(R22:R44) -> 0 | S45: =SUM(S22:S44) -> 0 | T45: =SUM(T22:T44) -> 0 | V45: =ROUND(SUM(V22:V44),2) -> 170.01

Sheet SA-EDERSA-03 (1)
B2: =+'TOT-0316'!B2 -> ANEXO III al Memorandum D.T.E.E. N° 279 / 2017
A4: ENTE NACIONAL REGULADOR
A5: DE LA ELECTRICIDAD
F8: SISTEMA DE TRANSPORTE DE ENERGÍA ELÉCTRICA POR DISTRIBUCIÓN TRONCAL - TRANSPA S.A.
F10: 2.2.2.- Transportista Independiente E.D.E.R.S.A.
B12: =+'TOT-0316'!B14 -> Desde el 01 al 31 de Marzo de 2016
F15: Salida en 330 kV | G15: - | H15: =60*'TOT-0316'!B13 -> 60 | J15: =IF(H15=60," ",IF(H15=120,"Coeficiente duplicado por tasa de falla >4 Sal. x año/100 km.","REVISAR COEFICIENTE")) -> 
F16: Salida en 132 kV = | G16: 3.243 | H16: =50*'TOT-0316'!B13 -> 50 | J16: =IF(H16=50," ",IF(H16=100,"Coeficiente duplicado por tasa de falla >4 Sal. x año/100 km.","REVISAR COEFICIENTE")) -> 
F17: Salida en 33 kV | G17: 2.433 | H17: =25*'TOT-0316'!B13 -> 25 | J17: =IF(H17=25," ",IF(H17=50,"Coeficiente duplicado por tasa de falla >4 Sal. x año/100 km.","REVISAR COEFICIENTE")) -> 
F18: Salida en 13,2 kV = | G18: 2.433 | H18: =20*'TOT-0316'!B13 -> 20 | J18: =IF(H18=20," ",IF(H18=40,"Coeficiente duplicado por tasa de falla >4 Sal. x año/100 km.","REVISAR COEFICIENTE")) -> 
C20: 3 | D20: 4 | E20: 5 | F20: 6 | G20: 7 | H20: 8 | I20: 9 | J20: 10 | K20: 11 | L20: 12 | M20: 13 | N20: 14 | O20: 15 | P20: 16 | Q20: 17 | R20: 18 | S20: 19 | T20: 20 | U20: 21 | V20: 22
C21: N° | D21: INDISP | E21: ID EQUIPO | F21: ESTACIÓN TRANSFORMADORA | G21: EQUIPO | H21: U [kV] | I21: $/h | J21: Salida | K21: Entrada | L21: Hs. Indisp. | M21: Mtos. Indisp. | N21: Tipo Sal.(²) | O21: AUT. | P21: K (U) | Q21: PENALIZ. PROGRAM. | R21: PENALIZACIONES Por Salida hs. Restantes | T21: RESTANTE FORZADA | U21: Informó en Térm. | V21: TOTAL PENALIZAC.
C24: 21 | D24: 300274 | E24: 4893 | F24: VIEDMA | G24: SALIDA ALIM. 4 VIEDMA | H24: 13.2 | I24: =IF(H24=330,$G$15,IF(AND(H24<=132,H24>=66),$G$16,IF(AND(H24<66,H24>=33),$G$17,$G$18))) -> 2.433 | J24: 2016-03-07T13:00:00 | K24: 2016-03-07T14:41:00 | L24: =IF(F24="","",(K24-J24)*24) -> 1.683333333 | M24: =IF(F24="","",ROUND((K24-J24)*24*60,0)) -> 101 | N24: P | O24: =IF(F24="","",IF(N24="P","--","NO")) -> -- | P24: =IF(H24=330,$H$15,IF(AND(H24<=132,H24>=66),$H$16,IF(AND(H24<66,H24>13.2),$H$17,$H$18))) -> 20 | Q24: =IF(N24="P",I24*P24*ROUND(M24/60,2)*0.1,"--") -> 8.17488 | R24: =IF(AND(N24="F",O24="NO"),I24*P24,"--") -> -- | S24: =IF(N24="F",I24*P24*ROUND(M24/60,2),"--") -> -- | T24: =IF(N24="RF",I24*P24*ROUND(M24/60,2),"--") -> -- | U24: =IF(F24="","","SI") -> SI | V24: =IF(F24="","",SUM(Q24:T24)*IF(U24="SI",1,2)*IF(H24="500/220",0,1)) -> 8.17488
C25: 22 | D25: 300677 | E25: 1773 | F25: VIEDMA | G25: SALIDA ALIM. 5 VIEDMA 2 | H25: 13.2 | I25: 2.433 | J25: 2016-03-22T13:08:00 | K25: 2016-03-22T13:38:00 | L25: =IF(F25="","",(K25-J25)*24) -> 0.5000000001 | M25: =IF(F25="","",ROUND((K25-J25)*24*60,0)) -> 30 | N25: P | O25: -- | P25: 20 | Q25: 2.433 | R25: -- | S25: -- | T25: -- | U25: SI | V25: 2.433
I26: 2.433 | P26: 20 | Q26: -- | R26: -- | S26: -- | T26: --
I27: 2.433 | O27: =IF(F27="","",IF(N27="P","--","NO")) ->  | P27: =IF(H27=330,$H$15,IF(AND(H27<=132,H27>=66),$H$16,IF(AND(H27<66,H27>13.2),$H$17,$H$18))) -> 20 | Q27: =IF(N27="P",I27*P27*ROUND(M27/60,2)*0.1,"--") -> -- | R27: =IF(AND(N27="F",O27="NO"),I27*P27,"--") -> -- | S27: =IF(N27="F",I27*P27*ROUND(M27/60,2),"--") -> -- | T27: =IF(N27="RF",I27*P27*ROUND(M27/60,2),"--") -> -- | U27: =IF(F27="","","SI") -> 
I28: 2.433 | P28: 20 | Q28: -- | R28: -- | S28: -- | T28: --
I29: 2.433 | P29: 20 | Q29: -- | R29: -- | S29: -- | T29: --
I30: 2.433 | P30: 20 | Q30: -- | R30: -- | S30: -- | T30: --
I31: 2.433 | P31: 20 | Q31: -- | R31: -- | S31: -- | T31: --
I32: 2.433 | P32: 20 | Q32: -- | R32: -- | S32: -- | T32: --
I33: 2.433 | P33: 20 | Q33: -- | R33: -- | S33: -- | T33: --
I34: 2.433 | P34: 20 | Q34: -- | R34: -- | S34: -- | T34: --
I35: 2.433 | P35: 20 | Q35: -- | R35: -- | S35: -- | T35: --
I36: 2.433 | P36: 20 | Q36: -- | R36: -- | S36: -- | T36: --
I37: 2.433 | P37: 20 | Q37: -- | R37: -- | S37: -- | T37: --
I38: 2.433 | P38: 20 | Q38: -- | R38: -- | S38: -- | T38: --
I39: 2.433 | P39: 20 | Q39: -- | R39: -- | S39: -- | T39: --
I40: 2.433 | P40: 20 | Q40: -- | R40: -- | S40: -- | T40: --
I41: 2.433 | P41: 20 | Q41: -- | R41: -- | S41: -- | T41: =IF(N41="RF",I41*P41*ROUND(M41/60,2),"--") -> --
I42: 2.433 | P42: 20 | Q42: -- | R42: -- | S42: -- | T42: =IF(N42="RF",I42*P42*ROUND(M42/60,2),"--") -> --
I43: 2.433 | P43: 20 | Q43: -- | R43: -- | S43: -- | T43: =IF(N43="RF",I43*P43*ROUND(M43/60,2),"--") -> --
C45: (²) | D45: P - PROGRAMADA | Q45: =ROUND(SUM(Q22:Q44),2) -> 10.61 | R45: =SUM(R22:R44) -> 0 | S45: =SUM(S22:S44) -> 0 | T45: =SUM(T22:T44) -> 0 | V45: =SUM(V22:V44) -> 10.60788

Sheet SUP-EDERSA
B2: ='TOT-0316'!B2 -> ANEXO III al Memorandum D.T.E.E. N° 279 / 2017
A3: ENTE NACIONAL REGULADOR
A4: DE LA ELECTRICIDAD
D7: SISTEMA DE TRANSPORTE DE ENERGÍA ELÉCTRICA POR DISTRIBUCIÓN TRONCAL - TRANSPA S.A.
D9: 3.1.- SUPERVISIÓN - Transportista Independiente E.D.E.R.S.A.
B11: ='TOT-0316'!B14 -> Desde el 01 al 31 de Marzo de 2016
C15: a) Datos
L16: Salida en 132 kV = | M16: 12.14
D17: Tiempo de servicio = | E17: =MID(B11,16,2)*24 -> 744 | F17: hs | I17: $/100 km-h : LÍNEAS 132 kV | J17: 261.099 | L17: Salida en 33 kV | M17: 9.111
D18: Porcentaje por Supervisión = | E18: 0.025 | I18: Cargo por Transformador por MVA = | J18: 0.909 | L18: Salida en 13,2 kV = | M18: 9.111
C20: b) SM: es la suma de las sanciones a que en cada mes se hiciere pasible el Transportista Independiente, valorizadas con idénticos criterios que los que se aplican a la Concesionaria.
D22: SANCIÓN al T.I. | F22: LÍNEAS | I22: 4107.49 | L22: SEGÚN 1.2.
F23: TRANSFORMACIÓN | I23: 748.28 | L23: SEGÚN 2.1.2.
F24: SALIDAS | I24: 39.72 | L24: SEGÚN 2.2.2.
H26: SM = | I26: =SUM(I22:I25) -> 4895.49
C28: c) RM : es la remuneración que mensualmente recibiría el Transportista Independiente, si su servicio fuera valorizado conforme al régimen remuneratorio que se aplica a la Concesionaria.
D30: Cargo por Capacidad de Transporte | E30: U [kV] | F30: Long [km] | H30: RM por Cap. Transporte | I30: RM por Energía Transportada | L30: TOTAL
D31: PUNTA COLORADA - SIERRA GRANDE | E31: 132 | F31: 31 | H31: =F31*$J$17*$E$17/100 -> 60219.87336 | I31: 0 | J31: (DTE 0316) | L31: =SUM(H31:K31) -> 60219.87336
D32: S.A. OESTE - SIERRA GRANDE | E32: 132 | F32: 110.3 | H32: =F32*$J$17*$E$17/100 -> 214266.1946 | I32: 13820 | J32: (DTE 0316) | L32: =SUM(H32:K32) -> 228086.1946
D33: S.A. OESTE - VIEDMA | E33: 132 | F33: 185.6 | H33: =F33*$J$17*$E$17/100 -> 360542.2095 | I33: 11599 | J33: (DTE 0316) | L33: =SUM(H33:K33) -> 372141.2095
D34: VIEDMA - CARMEN DE PATAGONES | E34: 132 | F34: 7 | H34: =F34*$J$17*$E$17/100 -> 13598.03592 | I34: 1 | J34: (DTE 0316) | L34: =SUM(H34:K34) -> 13599.03592
L35: =SUM(L31:L34) -> 674046.3134
D37: Cargo por Capacidad de Transformación | E37: Equipo | F37: Pot E.T. [MVA] | H37: RM Cap. Transformación | J37: E.T | L37: Salida | M37: U [kV] | N37: Cargo
D38: PUNTA COLORADA | E38: TRAFOS 1y2 | F38: 30 | H38: =+F38*$J$18*$E$17 -> 20288.88 | J38: C. DE PATAGONES | L38: Salida Viedma | M38: 132 | N38: =M16*E17 -> 9032.16
D39: SIERRA GRANDE | E39: Tr 1, 2, 4 y 5 | F39: 88 | H39: =+F39*$J$18*$E$17 -> 59514.048 | J39: SAN ANTONIO ESTE | L39: Salida Conesa y SA Oeste | M39: 33 | N39: =+M17*E17*2 -> 13557.168
D40: SAN ANTONIO ESTE | E40: TRAFO 1 | F40: 7.5 | H40: =+F40*$J$18*$E$17 -> 5072.22 | J40: SAN ANTONIO OESTE | L40: Salidas Valcheta, SA Oeste y SA Este | M40: 33 | N40: =3*M17*E17 -> 20335.752
D41: SAN ANTONIO OESTE | E41: TRAFO 1 | F41: 15 | H41: =+F41*$J$18*$E$17 -> 10144.44 | J41: VIEDMA | L41: Alimentadores 1,2,3,5,6 y 8 | M41: 13.2 | N41: =+M18*E17*6 -> 40671.504
D42: VIEDMA | E42: TRAFOS 1 y 2 | F42: 30 | H42: =+F42*$J$18*$E$17 -> 20288.88 | J42: PUNTA COLORADA | L42: Alimentadores en 33 y 6,6 (2) | N42: =+M17*E17+M18*E17*2 -> 20335.752
H43: =SUM(H38:H42) -> 115308.468 | J43: SIERRA GRANDE | L43: Salidas en 132, 33, 13,2 (3), 6,6 (2) | N43: =(M16+M17+M18*5)*E17 -> 49703.664
N44: =SUM(N38:N43) -> 153636
H46: RM = | I46: =+H43+N44+L35 -> 942990.7814 | K46: RM * = | L46: 270478.168
C48: d) CS: Es el cargo por Supervisión de la Operación que la Transportista percibe por supervisar la operación y mantenimiento del Transportista Independiente.
D50: Cargo por Supervisión afectado a la sanción | H50: CS = | I50: =E18*L46 -> 6761.954199 | K50: RM * = VALOR EMPLEADO PARA CALCULAR "CS"
C52: e) SANCIÓN
D53: Sanción Calculada | E53: =10*I26*I50/I46 -> 351.0435077
D55: TOTAL A PENALIZAR A TRANSPA S.A. POR SUPERVISIÓN A EDERSA
H57: SANCIÓN = | I57: =IF($E$53>3*I50,3*I50,$E$53) -> 351.0435077

Sheet DATO
A1: Mes | B1: Mes | C1: Dia | D1: Año
A2: enero | B2: 01 | C2: 31 | D2: 2006
A3: febrero | B3: 02 | C3: =IF(MOD(E14,4)=0,29,28) -> 29 | D3: =+D2+1 -> 2007
A4: marzo | B4: 03 | C4: 31 | D4: 2008
A5: abril | B5: 04 | C5: 30 | D5: 2009
A6: mayo | B6: 05 | C6: 31 | D6: 2010
A7: junio | B7: 06 | C7: 30 | D7: 2011
A8: julio | B8: 07 | C8: 31 | D8: 2012
A9: agosto | B9: 08 | C9: 31 | D9: 2013
A10: septiembre | B10: 09 | C10: 30 | D10: 2014
A11: octubre | B11: 10 | C11: 31 | D11: 2015
A12: noviembre | B12: 11 | C12: 30 | D12: 2016
A13: diciembre | B13: 12 | C13: 31 | I13: Total
A14: 11 | B14: 3 | C14: =CELL("CONTENIDO",OFFSET(A1,B14,0)) -> marzo | D14: =CELL("CONTENIDO",OFFSET(C1,B14,0)) -> 31 | E14: =CELL("CONTENIDO",OFFSET(D1,A14,0)) -> 2016 | F14: ="Desde el 01 al " & D14 & " de " & C14 & " de " & E14 -> Desde el 01 al 31 de marzo de 2016 | G14: =CELL("CONTENIDO",OFFSET(B1,B14,0)) -> 03 | H14: =RIGHT(E14,2) -> 16 | I14: B14
B15: ="\\rugor\files\Transporte\Transporte\AA PROCESO AUT ARCHIVOS J\TRANSPA\" &E14 -> \\rugor\files\Transporte\Transporte\AA PROCESO AUT ARCHIVOS J\TRANSPA\2016 | G15: ="J"&G14&H14&"TPA" -> J0316TPA
B16: ="\\rugor\files\Transporte\transporte\AA PROCESO AUT\INTERCAMBIO\" &H14&G14 -> \\rugor\files\Transporte\transporte\AA PROCESO AUT\INTERCAMBIO\1603
A17: Hoja | B17: FilaInicio | C17: FilasPlantilla | D17: Columnas | E17: NombreHoja | F17: OrigenDeDatos | G17: Col00 | H17: Col01 | I17: Col02 | J17: Col03 | K17: Col04 | L17: Col05 | M17: Col06 | N17: Col07 | O17: Col08 | P17: Col09 | Q17: Col10 | R17: Col11 | S17: Col12 | T17: Col13 | U17: Col14 | V17: Col15 | W17: FILHTOTAL | X17: COLHTOTAL | Y17: FILHCALC | Z17: COLHCALC | AA17: FILTRANSP | AB17: COLTRANSP | AC17: COL TSAL
A18: MODELO L | B18: 22 | C18: 20 | D18: 12 | E18: ="LI-" & $G$14 -> LI-03 | F18: TRANSPA_INDISPONIBILIDADES_LINEAS_TRANSPA.XLS | G18: 3 | H18: 5 | I18: 4 | J18: 6 | K18: 7 | L18: 8 | M18: 0 | N18: 10 | O18: 11 | P18: 14 | Q18: 0 | R18: 26 | S18: 15 | T18: 0 | U18: 0 | V18: 0 | W18: 19 | X18: 9 | Y18: 43 | Z18: 27 | AA18: 20 | AB18: 27 | AC18: 14
A19: MODELO L EDERSA | B19: 22 | C19: 20 | D19: 12 | E19: ="LI-EDERSA-" & $G$14 -> LI-EDERSA-03 | F19: TRANSPA_INDISPONIBILIDADES_LINEAS_EDERSA.XLS | G19: 3 | H19: 5 | I19: 4 | J19: 6 | K19: 7 | L19: 8 | M19: 0 | N19: 10 | O19: 11 | P19: 14 | Q19: 0 | R19: 26 | S19: 15 | T19: 0 | U19: 0 | V19: 0 | W19: 20 | X19: 9 | Y19: 43 | Z19: 27 | AA19: 20 | AB19: 27 | AC19: 14
A20: MODELO L SPSE | B20: 22 | C20: 20 | D20: 12 | E20: ="LI-SPSE-" & $G$14 -> LI-SPSE-03 | F20: TRANSPA_INDISPONIBILIDADES_LINEAS_SPSE.XLS | G20: 3 | H20: 5 | I20: 4 | J20: 6 | K20: 7 | L20: 8 | M20: 0 | N20: 10 | O20: 11 | P20: 14 | Q20: 0 | R20: 26 | S20: 15 | T20: 0 | U20: 0 | V20: 0 | W20: 21 | X20: 9 | Y20: 43 | Z20: 27 | AA20: 20 | AB20: 27 | AC20: 14
A21: MODELO L TRANSACUE | B21: 22 | C21: 20 | D21: 12 | E21: ="LI-TRANSACUE-" & $G$14 -> LI-TRANSACUE-03 | F21: TRANSPA_INDISPONIBILIDADES_LINEAS_TRANSACUE.XLS | G21: 3 | H21: 5 | I21: 4 | J21: 6 | K21: 7 | L21: 8 | M21: 0 | N21: 10 | O21: 11 | P21: 14 | Q21: 0 | R21: 26 | S21: 15 | T21: 0 | U21: 0 | V21: 0 | W21: 22 | X21: 9 | Y21: 43 | Z21: 27 | AA21: 20 | AB21: 27 | AC21: 14
A22: MODELO T | B22: 24 | C22: 20 | D22: 13 | E22: ="TR-" & $G$14 -> TR-03 | F22: TRANSPA_INDISPONIBILIDADES_TRAFOS_TRANSPA.XLS | G22: 3 | H22: 5 | I22: 4 | J22: 6 | K22: 7 | L22: 8 | M22: 9 | N22: 11 | O22: 12 | P22: 15 | Q22: 16 | R22: 18 | S22: 28 | T22: 0 | U22: 0 | V22: 0 | W22: 27 | X22: 9 | Y22: 45 | Z22: 29 | AA22: 22 | AB22: 29 | AC22: 15
A23: MODELO T EDERSA | B23: 24 | C23: 20 | D23: 13 | E23: ="TR-EDERSA-" & $G$14 -> TR-EDERSA-03 | F23: TRANSPA_INDISPONIBILIDADES_TRAFOS_EDERSA.XLS | G23: 3 | H23: 5 | I23: 4 | J23: 6 | K23: 7 | L23: 8 | M23: 9 | N23: 11 | O23: 12 | P23: 15 | Q23: 16 | R23: 18 | S23: 28 | T23: 0 | U23: 0 | V23: 0 | W23: 28 | X23: 9 | Y23: 45 | Z23: 29 | AA23: 22 | AB23: 29 | AC23: 15
A24: MODELO T SPSE | B24: 24 | C24: 20 | D24: 13 | E24: ="TR-SPSE-" & $G$14 -> TR-SPSE-03 | F24: TRANSPA_INDISPONIBILIDADES_TRAFOS_SPSE.XLS | G24: 3 | H24: 5 | I24: 4 | J24: 6 | K24: 7 | L24: 8 | M24: 9 | N24: 11 | O24: 12 | P24: 15 | Q24: 16 | R24: 18 | S24: 28 | T24: 0 | U24: 0 | V24: 0 | W24: 29 | X24: 9 | Y24: 45 | Z24: 29 | AA24: 22 | AB24: 29 | AC24: 15
A25: MODELO S | B25: 24 | C25: 20 | D25: 10 | E25: ="SA-" & $G$14 -> SA-03 | F25: TRANSPA_INDISPONIBILIDADES_SALIDAS_TRANSPA.XLS | G25: 3 | H25: 5 | I25: 4 | J25: 6 | K25: 7 | L25: 8 | M25: 10 | N25: 11 | O25: 14 | P25: 15 | Q25: 21 | R25: 0 | S25: 0 | T25: 0 | U25: 0 | V25: 0 | W25: 32 | X25: 9 | Y25: 45 | Z25: 22 | AA25: 22 | AB25: 22 | AC25: 21
A26: MODELO S EDERSA | B26: 24 | C26: 20 | D26: 10 | E26: ="SA-EDERSA-" & $G$14 -> SA-EDERSA-03 | F26: TRANSPA_INDISPONIBILIDADES_SALIDAS_EDERSA.XLS | G26: 3 | H26: 5 | I26: 4 | J26: 6 | K26: 7 | L26: 8 | M26: 10 | N26: 11 | O26: 14 | P26: 15 | Q26: 21 | R26: 0 | S26: 0 | T26: 0 | U26: 0 | V26: 0 | W26: 33 | X26: 9 | Y26: 45 | Z26: 22 | AA26: 22 | AB26: 22 | AC26: 21
A27: MODELO S SPSE | B27: 24 | C27: 20 | D27: 10 | E27: ="SA-SPSE-" & $G$14 -> SA-SPSE-03 | F27: TRANSPA_INDISPONIBILIDADES_SALIDAS_SPSE.XLS | G27: 3 | H27: 5 | I27: 4 | J27: 6 | K27: 7 | L27: 8 | M27: 10 | N27: 11 | O27: 14 | P27: 15 | Q27: 21 | R27: 0 | S27: 0 | T27: 0 | U27: 0 | V27: 0 | W27: 34 | X27: 9 | Y27: 45 | Z27: 22 | AA27: 22 | AB27: 22 | AC27: 21
A28: MODELO S TRANSACUE | B28: 24 | C28: 20 | D28: 10 | E28: ="SA-TRANSACUE-" & $G$14 -> SA-TRANSACUE-03 | F28: TRANSPA_INDISPONIBILIDADES_SALIDAS_TRANSACUE.XLS | G28: 3 | H28: 5 | I28: 4 | J28: 6 | K28: 7 | L28: 8 | M28: 10 | N28: 11 | O28: 14 | P28: 15 | Q28: 21 | R28: 0 | S28: 0 | T28: 0 | U28: 0 | V28: 0 | W28: 35 | X28: 9 | Y28: 45 | Z28: 22 | AA28: 22 | AB28: 22 | AC28: 21
A29: MODELO R | B29: 22 | C29: 20 | D29: 12 | E29: ="RE-" & $G$14 -> RE-03 | F29: TRANSPA_INDISPONIBILIDADES_REACTIVOS_TRANSPA.XLS | G29: 3 | H29: 5 | I29: 4 | J29: 6 | K29: 7 | L29: 8 | M29: 10 | N29: 11 | O29: 14 | P29: 15 | Q29: 21 | R29: 0 | S29: 0 | T29: 0 | U29: 0 | V29: 0 | W29: 37 | X29: 9 | Y29: 43 | Z29: 22 | AA29: 20 | AB29: 22 | AC29: 21
A30: MODELO VST | B30: 19 | C30: 24 | D30: 4 | E30: ="CAUSAS-VST-" & $G$14 -> CAUSAS-VST-03 | F30: TRANSPA_CAUSAS_VST.XLS | G30: 3 | H30: 4 | I30: 5 | J30: 6 | K30: 7 | L30: 0 | M30: 0 | N30: 0 | O30: 0 | P30: 0 | Q30: 0 | R30: 0 | S30: 0 | T30: 0 | U30: 0 | V30: 0 | W30: 999 | X30: 999 | Y30: 0 | Z30: 0 | AA30: 0 | AB30: 0 | AC30: 0
B31: 30 | C31: 10 | D31: 11 | E31: DAG | F31: TRANSPA_INDISPONIBILIDADES_DAG.XLS | G31: 3 | H31: 5 | I31: 0 | J31: 4 | K31: 5 | L31: 6 | M31: 8 | N31: 9 | O31: 10 | P31: 13 | Q31: 15 | R31: 16 | S31: 0 | T31: 0 | U31: 0 | V31: 0 | W31: 0 | X31: 0 | Y31: 0 | Z31: 0 | AA31: 0 | AB31: 0 | AC31: 0
